fUST/lending_fUST_20250716
["ID","MTS","AMOUNT","RATE_DAILY","PERIOD"]
[372511005,1752665442478,-460.0,0.00019726,2]
[372511006,1752665442488,-460.0,0.00019726,2]
[372511007,1752665442498,-460.0,0.00019726,2]
[372511008,1752665442507,-460.0,0.00019726,2]
[372511009,1752665442517,-460.0,0.00019726,2]
[372511010,1752665442526,-460.0,0.00019726,2]
[372511011,1752665442536,-460.0,0.00019726,2]
[372511012,1752665442545,-460.0,0.00019726,2]
[372511013,1752665442555,-460.0,0.00019726,2]
[372511014,1752665442564,-460.0,0.00019726,2]
[372511015,1752665442574,-460.0,0.00019726,2]
[372511016,1752665442583,-314.82261584,0.00019726,2]
[372511017,1752665442593,-460.0,0.00019726,2]
[372511018,1752665442603,-481.90635901,0.00019726,2]
[372511019,1752665442612,-460.0,0.00019726,2]
[372511020,1752665442623,-460.0,0.00019726,2]
[372511021,1752665442632,-582.87,0.00019726,2]
[372511022,1752665442642,-460.0,0.00019726,2]
[372511023,1752665442651,-460.0,0.00019726,2]
[372511024,1752665442661,-761.58,0.00019726,2]
[372511025,1752665442671,-460.0,0.00019726,2]
[372511026,1752665442681,-487.95,0.00019726,2]
[372511027,1752665442691,-460.0,0.00019726,2]
[372511028,1752665442701,-460.0,0.00019726,2]
[372511029,1752665442710,-1620.41,0.00019726,2]
[372511030,1752665442720,-460.0,0.00019726,2]
[372511031,1752665442729,-460.0,0.00019726,2]
[372511032,1752665442739,-460.0,0.00019726,2]
[372511033,1752665442841,-460.0,0.00019726,2]
[372511034,1752665442851,-460.0,0.00019726,2]
[372511035,1752665442861,-651.15,0.00019726,2]
[372511037,1752665442871,-321.04742069,0.00019726,2]
[372511039,1752665442880,-460.0,0.00019726,2]
[372511040,1752665442890,-460.0,0.00019726,2]
[372511041,1752665442900,-532.71651424,0.00019726,2]
[372511042,1752665442910,-500.00398931,0.00019726,2]
[372511043,1752665442919,-469.92,0.00019726,2]
[372511044,1752665442929,-460.0,0.00019726,2]
[372511045,1752665442939,-568.08,0.00019726,2]
[372511046,1752665442949,-1169.1,0.00019726,2]
[372511047,1752665442959,-1169.06,0.00019726,2]
[372511048,1752665442969,-460.0,0.00019726,2]
[372511049,1752665442978,-543.39590179,0.00019726,2]
[372511050,1752665442988,-958.69,0.00019726,2]
[372511051,1752665442998,-460.0,0.00019726,2]
[372511052,1752665443008,-460.0,0.00019726,2]
[372511053,1752665443018,-460.0,0.00019726,2]
[372511054,1752665443027,-460.0,0.00019726,2]
[372511055,1752665443037,-460.0,0.00019726,2]
[372511056,1752665443047,-460.0,0.00019726,2]
[372511057,1752665443061,-460.0,0.00019726,2]
[372511058,1752665443071,-460.0,0.00019726,2]
[372511059,1752665443080,-460.0,0.00019726,2]
[372511061,1752665443090,-460.0,0.00019726,2]
[372511063,1752665443100,-460.0,0.00019726,2]
[372511065,1752665443110,-460.0,0.00019726,2]
[372511067,1752665443120,-460.0,0.00019726,2]
[372511069,1752665443131,-643.2,0.00019726,2]
[372511071,1752665443141,-460.0,0.00019726,2]
[372511073,1752665443150,-460.0,0.00019726,2]
[372511075,1752665443160,-460.0,0.00019726,2]
[372511077,1752665443170,-460.0,0.00019726,2]
[372511079,1752665443180,-460.0,0.00019726,2]
[372511081,1752665443190,-460.0,0.00019726,2]
[372511083,1752665443200,-460.0,0.00019726,2]
[372511085,1752665443209,-460.0,0.00019726,2]
[372511087,1752665443219,-460.0,0.00019726,2]
[372511089,1752665443229,-460.0,0.00019726,2]
[372511091,1752665443239,-460.0,0.00019726,2]
[372511093,1752665443246,-460.0,0.00019726,2]
[372511095,1752665443255,-460.0,0.00019726,2]
[372511097,1752665443265,-460.0,0.00019726,2]
[372511099,1752665443275,-460.0,0.00019726,2]
[372511101,1752665443285,-460.0,0.00019726,2]
[372511103,1752665443295,-460.0,0.00019726,2]
[372511105,1752665443304,-460.0,0.00019726,2]
[372511106,1752665443313,-460.0,0.00019726,2]
[372511108,1752665443323,-460.0,0.00019726,2]
[372511110,1752665443333,-460.0,0.00019726,2]
[372511112,1752665443342,-508.26,0.00019726,2]
[372511114,1752665443351,-460.0,0.00019726,2]
[372511116,1752665443360,-500.0,0.00019773,2]
[372511118,1752665443370,-500.50883314,0.0001982,2]
[372511120,1752665443379,-1251.09455427,0.000199,2]
[372511122,1752665443388,-460.0,0.0002,2]
[372511124,1752665443397,-460.0,0.0002,2]
[372511126,1752665443406,-460.0,0.0002,2]
[372511128,1752665443415,-460.0,0.0002,2]
[372511130,1752665443424,-460.0,0.0002,2]
[372511132,1752665443434,-460.0,0.0002,2]
[372511134,1752665443444,-460.0,0.0002,2]
[372511136,1752665443453,-460.0,0.0002,2]
[372511138,1752665443463,-321.17997114,0.0002,2]
[372511140,1752665443472,-460.0,0.0002,2]
[372511142,1752665443482,-460.0,0.0002,2]
[372511144,1752665443492,-460.0,0.0002,2]
[372511146,1752665443502,-460.0,0.0002,2]
[372511148,1752665443511,-460.0,0.0002,2]
[372511150,1752665443521,-761.58,0.0002,2]
[372511152,1752665443530,-460.0,0.0002,2]
[372511154,1752665443540,-487.95,0.0002,2]
[372511156,1752665443550,-460.0,0.0002,2]
[372511158,1752665443559,-460.0,0.0002,2]
[372511160,1752665443569,-1620.41,0.0002,2]
[372511162,1752665443580,-460.0,0.0002,2]
[372511164,1752665443589,-651.15,0.0002,2]
[372511165,1752665443598,-460.0,0.0002,2]
[372511167,1752665443608,-469.92,0.0002,2]
[372511169,1752665443618,-460.0,0.0002,2]
[372511171,1752665443627,-568.08,0.0002,2]
[372511173,1752665443637,-1169.1,0.0002,2]
[372511175,1752665443647,-1169.06,0.0002,2]
[372511178,1752665443657,-958.69,0.0002,2]
[372511179,1752665443666,-460.0,0.0002,2]
[372511181,1752665443675,-460.0,0.0002,2]
[372511183,1752665443685,-460.0,0.0002,2]
[372511185,1752665443695,-460.0,0.0002,2]
[372511187,1752665443704,-460.0,0.0002,2]
[372511189,1752665443715,-460.0,0.0002,2]
[372511192,1752665443725,-460.0,0.0002,2]
[372511194,1752665443734,-460.0,0.0002,2]
[372511195,1752665443745,-609.66,0.0002,2]
[372511197,1752665443754,-460.0,0.0002,2]
[372511199,1752665443763,-460.0,0.0002,2]
[372511201,1752665443773,-460.0,0.0002,2]
[372511203,1752665443783,-460.0,0.0002,2]
[372511205,1752665443794,-643.2,0.0002,2]
[372511207,1752665443803,-446.53519211,0.0002,2]
[372511209,1752665443813,-460.0,0.0002,2]
[372511211,1752665443822,-460.0,0.0002,2]
[372511213,1752665443831,-460.0,0.0002,2]
[372511215,1752665443841,-460.0,0.0002,2]
[372511217,1752665443850,-460.0,0.0002,2]
[372511219,1752665443860,-460.0,0.0002,2]
[372511221,1752665443869,-460.0,0.0002,2]
[372511223,1752665443879,-460.0,0.0002,2]
[372511225,1752665443888,-460.0,0.0002,2]
[372511227,1752665443898,-460.0,0.0002,2]
[372511229,1752665443907,-460.0,0.0002,2]
[372511231,1752665443917,-460.0,0.0002,2]
[372511233,1752665443926,-460.0,0.0002,2]
[372511235,1752665443936,-460.0,0.0002,2]
[372511237,1752665443945,-508.26,0.0002,2]
[372511239,1752665443955,-460.0,0.0002,2]
[372511241,1752665443964,-1000.0,0.00020021,2]
[372511243,1752665443974,-214.40824756,0.00020173,3]
[372511245,1752665443983,-476.07036022,0.00020173,3]
[372511247,1752665443992,-12605.49131908,0.00020173,3]
[372511249,1752665444002,-3059.16587204,0.00020173,2]
[372511251,1752665444011,-279.482621,0.00020187,2]
[372511253,1752665444021,-10018.15424856,0.0002026,3]
[372511255,1752665444030,-1000.0,0.00020268,2]
[372511257,1752665444039,-1500.0,0.00020268,2]
[372511259,1752665444049,-513.65960544,0.00020273,2]
[372511261,1752665444061,-460.0,0.00020273,2]
[372511263,1752665444071,-460.0,0.00020273,2]
[372511265,1752665444080,-460.0,0.00020273,2]
[372511267,1752665444090,-503.5,0.00020273,2]
[372511268,1752665444099,-460.0,0.00020273,2]
[372511270,1752665444109,-460.0,0.00020273,2]
[372511272,1752665444120,-460.0,0.00020273,2]
[372511274,1752665444130,-460.0,0.00020273,2]
[372511275,1752665444140,-460.0,0.00020273,2]
[372511276,1752665444150,-460.0,0.00020273,2]
[372511277,1752665444159,-761.58,0.00020273,2]
[372511278,1752665444169,-242.38747782,0.00020273,2]
[372511279,1752665444178,-487.95,0.00020273,2]
[372511280,1752665444188,-460.0,0.00020273,2]
[372511281,1752665444200,-460.0,0.00020273,2]
[372511282,1752665444211,-1620.41,0.00020273,2]
[372511283,1752665444221,-460.0,0.00020273,2]
[372511284,1752665444231,-651.15,0.00020273,2]
[372511285,1752665444241,-460.0,0.00020273,2]
[372511286,1752665444251,-469.92,0.00020273,2]
[372511287,1752665444261,-460.0,0.00020273,2]
[372511288,1752665444270,-568.08,0.00020273,2]
[372511289,1752665444280,-1169.1,0.00020273,2]
[372511290,1752665444288,-1169.06,0.00020273,2]
[372511291,1752665444298,-958.69,0.00020273,2]
[372511292,1752665444307,-460.0,0.00020273,2]
[372511293,1752665444318,-460.0,0.00020273,2]
[372511294,1752665444327,-460.0,0.00020273,2]
[372511296,1752665444337,-460.0,0.00020273,2]
[372511297,1752665444346,-460.0,0.00020273,2]
[372511298,1752665444355,-460.0,0.00020273,2]
[372511299,1752665444365,-460.0,0.00020273,2]
[372511300,1752665444375,-460.0,0.00020273,2]
[372511301,1752665444386,-643.2,0.00020273,2]
[372511302,1752665444395,-460.0,0.00020273,2]
[372511303,1752665444405,-460.0,0.00020273,2]
[372511304,1752665444414,-460.0,0.00020273,2]
[372511305,1752665444424,-460.0,0.00020273,2]
[372511306,1752665444434,-460.0,0.00020273,2]
[372511307,1752665444443,-460.0,0.00020273,2]
[372511308,1752665444453,-460.0,0.00020273,2]
[372511309,1752665444463,-460.0,0.00020273,2]
[372511310,1752665444472,-460.0,0.00020273,2]
[372511311,1752665444482,-460.0,0.00020273,2]
[372511312,1752665444493,-460.0,0.00020273,2]
[372511313,1752665444503,-221.55568455,0.00020273,2]
[372511314,1752665444513,-508.26,0.00020273,2]
[372511315,1752665444523,-179.91004498,0.00020296,2]
[372511316,1752665444532,-998.34621255,0.00020321,2]
[372511317,1752665444542,-300.67506845,0.00020321,2]
[372511318,1752665444551,-2258.42,0.00020538,3]
[372511319,1752665444561,-1129.2,0.00020538,3]
[372511320,1752665444570,-564.6,0.00020538,3]
[372511321,1752665444580,-1174.46,0.00020538,3]
[372511322,1752665444590,-587.22,0.00020538,3]
[372511323,1752665444600,-462.0,0.00020547,2]
[372511324,1752665444610,-460.0,0.00020547,2]
[372511325,1752665444619,-460.0,0.00020547,2]
[372511326,1752665444629,-460.0,0.00020547,2]
[372511327,1752665444639,-460.0,0.00020547,2]
[372511328,1752665444649,-761.58,0.00020547,2]
[372511329,1752665444659,-487.95,0.00020547,2]
[372511330,1752665444669,-460.0,0.00020547,2]
[372511331,1752665444679,-1620.41,0.00020547,2]
[372511332,1752665444688,-534.5137927,0.00020547,2]
[372511333,1752665444697,-651.15,0.00020547,2]
[372511334,1752665444707,-460.0,0.00020547,2]
[372511335,1752665444717,-469.92,0.00020547,2]
[372511336,1752665444728,-460.0,0.00020547,2]
[372511337,1752665444737,-568.08,0.00020547,2]
[372511338,1752665444746,-1169.1,0.00020547,2]
[372511339,1752665444755,-1169.06,0.00020547,2]
[372511340,1752665444764,-958.69,0.00020547,2]
[372511341,1752665444773,-460.0,0.00020547,2]
[372511342,1752665444783,-460.0,0.00020547,2]
[372511343,1752665444792,-460.0,0.00020547,2]
[372511344,1752665444801,-460.0,0.00020547,2]
[372511345,1752665444810,-460.0,0.00020547,2]
[372511346,1752665444820,-460.0,0.00020547,2]
[372511347,1752665444829,-370.39,0.00020547,2]
[372511348,1752665444838,-643.2,0.00020547,2]
[372511349,1752665444847,-460.0,0.00020547,2]
[372511350,1752665444857,-460.0,0.00020547,2]
[372511351,1752665444866,-460.0,0.00020547,2]
[372511352,1752665444876,-460.0,0.00020547,2]
[372511353,1752665444885,-460.0,0.00020547,2]
[372511354,1752665444893,-460.0,0.00020547,2]
[372511355,1752665444903,-460.0,0.00020547,2]
[372511356,1752665444912,-460.0,0.00020547,2]
[372511357,1752665444922,-460.0,0.00020547,2]
[372511358,1752665444931,-460.0,0.00020547,2]
[372511359,1752665444941,-508.26,0.00020547,2]
[372511360,1752665444950,-431.329178,0.00020568,2]
[372511361,1752665445040,-160.0,0.00020667,2]
[372511362,1752665445050,-160.0,0.00020699,2]
[372511363,1752665445065,-160.0,0.00020699,2]
[372511364,1752665445075,-160.0,0.00020699,2]
[372511365,1752665445084,-214.40824756,0.00020699,2]
[372511366,1752665445094,-476.07036022,0.00020699,2]
[372511367,1752665445105,-838.99048831,0.00020699,2]
[372511368,1752665445115,-520.85416667,0.00020699,2]
[372511369,1752665445124,-160.0,0.000207,2]
[372511370,1752665445134,-215.5496034,0.000207,2]
[372511371,1752665445144,-230.8109288,0.000207,2]
[372511372,1752665445155,-160.0,0.000207,2]
[372511373,1752665445164,-160.0,0.000207,2]
[372511374,1752665445174,-160.0,0.000207,2]
[372511375,1752665445184,-160.0,0.000207,2]
[372511376,1752665445193,-160.0,0.000207,2]
[372511377,1752665445202,-12605.49131908,0.000207,2]
[372511378,1752665445212,-6552.40895527,0.00020739,2]
[372511379,1752665445222,-503.14949113,0.00020769,2]
[372511380,1752665445231,-500.0,0.00020769,2]
[372511381,1752665445240,-614.40379172,0.00020769,2]
[372511382,1752665445250,-420.0,0.00020783,2]
[372511383,1752665445259,-340.0,0.00020783,2]
[372511384,1752665445269,-1680.0,0.00020785,2]
[372511385,1752665445278,-1500.0,0.00020816,2]
[372511386,1752665445287,-460.0,0.00020821,2]
[372511387,1752665445296,-281.01611363,0.00020821,2]
[372511388,1752665445305,-492.78,0.00020821,2]
[372511389,1752665445315,-460.0,0.00020821,2]
[372511390,1752665445324,-761.58,0.00020821,2]
[372511391,1752665445334,-487.95,0.00020821,2]
[372511392,1752665445343,-460.0,0.00020821,2]
[372511393,1752665445353,-1620.41,0.00020821,2]
[372511394,1752665445363,-651.15,0.00020821,2]
[372511395,1752665445372,-460.0,0.00020821,2]
[372511396,1752665445382,-469.92,0.00020821,2]
[372511397,1752665445392,-460.0,0.00020821,2]
[372511398,1752665445401,-568.08,0.00020821,2]
[372511399,1752665445410,-1169.1,0.00020821,2]
[372511400,1752665445420,-1169.06,0.00020821,2]
[372511401,1752665445430,-958.69,0.00020821,2]
[372511402,1752665445439,-492.92,0.00020821,2]
[372511403,1752665445449,-460.0,0.00020821,2]
[372511404,1752665445459,-460.0,0.00020821,2]
[372511405,1752665445470,-460.0,0.00020821,2]
[372511406,1752665445479,-460.0,0.00020821,2]
[372511407,1752665445489,-643.2,0.00020821,2]
[372511408,1752665445499,-460.0,0.00020821,2]
[372511409,1752665445509,-460.0,0.00020821,2]
[372511410,1752665445519,-460.0,0.00020821,2]
[372511411,1752665445529,-460.0,0.00020821,2]
[372511412,1752665445538,-460.0,0.00020821,2]
[372511413,1752665445548,-460.0,0.00020821,2]
[372511414,1752665445558,-460.0,0.00020821,2]
[372511415,1752665445567,-508.26,0.00020821,2]
[372511416,1752665445577,-1680.0,0.00020884,2]
[372511417,1752665445586,-249.84316173,0.000209,2]
[372511418,1752665445595,-500.0,0.00020916,2]
[372511419,1752665445605,-508.27684544,0.00020916,2]
[372511420,1752665445614,-10000.0,0.00021,5]
[372511421,1752665445624,-3920.39356113,0.00021,2]
[372511422,1752665445633,-269.95567869,0.00021,2]
[372511423,1752665445643,-169.10995551,0.00021,10]
[372511424,1752665445652,-35000.0,0.00021,2]
[372511425,1752665445661,-780.0,0.00021,2]
[372511426,1752665445671,-846.223,0.00021033,2]
[372511427,1752665445681,-178.369,0.00021033,2]
[372511428,1752665445691,-460.0,0.00021095,2]
[372511429,1752665445700,-460.0,0.00021095,2]
[372511430,1752665445710,-761.58,0.00021095,2]
[372511431,1752665445720,-487.95,0.00021095,2]
[372511432,1752665445730,-476.86,0.00021095,2]
[372511433,1752665445740,-1620.41,0.00021095,2]
[372511434,1752665445749,-651.15,0.00021095,2]
[372511435,1752665445759,-460.0,0.00021095,2]
[372511436,1752665445768,-469.92,0.00021095,2]
[372511437,1752665445777,-460.0,0.00021095,2]
[372511438,1752665445787,-568.08,0.00021095,2]
[372511439,1752665445797,-1169.1,0.00021095,2]
[372511440,1752665445806,-1169.06,0.00021095,2]
[372511441,1752665445815,-958.69,0.00021095,2]
[372511443,1752665445824,-460.0,0.00021095,2]
[372511445,1752665445834,-550.24,0.00021095,2]
[372511447,1752665445843,-460.0,0.00021095,2]
[372511449,1752665445853,-643.2,0.00021095,2]
[372511451,1752665445862,-460.0,0.00021095,2]
[372511453,1752665445871,-460.0,0.00021095,2]
[372511455,1752665445881,-460.0,0.00021095,2]
[372511457,1752665445891,-460.0,0.00021095,2]
[372511459,1752665445900,-460.0,0.00021095,2]
[372511461,1752665445910,-460.0,0.00021095,2]
[372511463,1752665445919,-508.26,0.00021095,2]
[372511465,1752665445929,-1251.09455426,0.00021133,2]
[372511467,1752665445939,-260.0,0.00021215,2]
[372511468,1752665445948,-1000.0,0.00021317,2]
[372511469,1752665445958,-460.0,0.00021369,2]
[372511470,1752665445968,-176.2,0.00021369,2]
[372511471,1752665445977,-761.58,0.00021369,2]
[372511472,1752665445987,-487.95,0.00021369,2]
[372511473,1752665445996,-1620.41,0.00021369,2]
[372511474,1752665446006,-651.15,0.00021369,2]
[372511475,1752665446017,-460.0,0.00021369,2]
[372511476,1752665446033,-469.92,0.00021369,2]
[372511477,1752665446047,-460.0,0.00021369,2]
[372511478,1752665446063,-568.08,0.00021369,2]
[372511479,1752665446077,-1169.1,0.00021369,2]
[372511480,1752665446091,-1169.06,0.00021369,2]
[372511481,1752665446104,-958.69,0.00021369,2]
[372511482,1752665446116,-539.68,0.00021369,2]
[372511483,1752665446129,-460.0,0.00021369,2]
[372511484,1752665446143,-643.2,0.00021369,2]
[372511485,1752665446157,-291.39,0.00021369,2]
[372511486,1752665446168,-460.0,0.00021369,2]
[372511487,1752665446181,-460.0,0.00021369,2]
[372511488,1752665446192,-460.0,0.00021369,2]
[372511489,1752665446203,-460.0,0.00021369,2]
[372511490,1752665446215,-508.26,0.00021369,2]
[372511491,1752665446229,-633.66232133,0.000215,2]
[372511492,1752665446242,-500.85113653,0.000215,2]
[372511493,1752665446254,-500.0,0.00021606,2]
[372511494,1752665446266,-501.58314376,0.00021606,2]
[372511495,1752665446279,-460.0,0.00021643,2]
[372511496,1752665446292,-761.58,0.00021643,2]
[372511497,1752665446305,-487.95,0.00021643,2]
[372511498,1752665446317,-1620.41,0.00021643,2]
[372511499,1752665446329,-651.15,0.00021643,2]
[372511500,1752665446343,-460.0,0.00021643,2]
[372511501,1752665446356,-469.92,0.00021643,2]
[372511502,1752665446370,-460.0,0.00021643,2]
[372511503,1752665446383,-568.08,0.00021643,2]
[372511504,1752665446396,-1169.1,0.00021643,2]
[372511505,1752665446410,-1169.06,0.00021643,2]
[372511506,1752665446422,-958.69,0.00021643,2]
[372511507,1752665446434,-344.35,0.00021643,2]
[372511508,1752665446449,-643.2,0.00021643,2]
[372511509,1752665446463,-460.0,0.00021643,2]
[372511510,1752665446474,-460.0,0.00021643,2]
[372511511,1752665446486,-460.0,0.00021643,2]
[372511512,1752665446498,-372.18,0.00021643,2]
[372511513,1752665446508,-508.26,0.00021643,2]
[372511514,1752665446521,-360.0,0.00021763,2]
[372511515,1752665446533,-500.0,0.00021862,2]
[372511516,1752665446547,-460.0,0.00021917,2]
[372511517,1752665446560,-761.58,0.00021917,2]
[372511518,1752665446570,-487.95,0.00021917,2]
[372511519,1752665446582,-1620.41,0.00021917,2]
[372511520,1752665446594,-651.15,0.00021917,2]
[372511521,1752665446605,-460.0,0.00021917,2]
[372511522,1752665446619,-469.92,0.00021917,2]
[372511523,1752665446629,-598.48,0.00021917,2]
[372511524,1752665446640,-568.08,0.00021917,2]
[372511525,1752665446651,-1169.1,0.00021917,2]
[372511526,1752665446661,-1169.06,0.00021917,2]
[372511527,1752665446674,-958.69,0.00021917,2]
[372511528,1752665446684,-643.2,0.00021917,2]
[372511529,1752665446695,-460.0,0.00021917,2]
[372511530,1752665446706,-460.0,0.00021917,2]
[372511531,1752665446718,-460.0,0.00021917,2]
[372511532,1752665446730,-611.17,0.00022,7]
[372511533,1752665446742,-14783.55,0.00022,7]
[372511534,1752665446754,-694.65,0.00022,7]
[372511535,1752665446765,-185190.70443,0.00022,4]
[372511536,1752665446776,-14837.11,0.00022,2]
[372511537,1752665446787,-214.40824756,0.00022,7]
[372511538,1752665446798,-476.07036022,0.00022,7]
[372511539,1752665446809,-793.70857859,0.00022154,2]
[372511540,1752665446820,-460.0,0.00022191,2]
[372511541,1752665446832,-761.58,0.00022191,2]
[372511542,1752665446843,-487.95,0.00022191,2]
[372511543,1752665446854,-1620.41,0.00022191,2]
[372511544,1752665446865,-651.15,0.00022191,2]
[372511545,1752665446875,-156.69,0.00022191,2]
[372511546,1752665446886,-469.92,0.00022191,2]
[372511547,1752665446898,-568.08,0.00022191,2]
[372511548,1752665446909,-1169.1,0.00022191,2]
[372511549,1752665446919,-1169.06,0.00022191,2]
[372511550,1752665446930,-958.69,0.00022191,2]
[372511551,1752665446942,-643.2,0.00022191,2]
[372511552,1752665446954,-460.0,0.00022191,2]
[372511553,1752665446965,-460.0,0.00022191,2]
[372511554,1752665446977,-307.2,0.00022191,2]
[372511555,1752665446988,-500.0,0.00022233,2]
[372511556,1752665446999,-549.49136234,0.00022233,2]
[372511557,1752665447010,-153.72017957,0.00022233,2]
[372511558,1752665447021,-163.42539539,0.00022233,2]
[372511559,1752665447032,-500.0,0.00022233,2]
[372511560,1752665447043,-400.0,0.00022311,2]
[372511561,1752665447054,-151.0,0.00022361,2]
[372511562,1752665447070,-500.0,0.00022361,2]
[372511563,1752665447081,-151.0,0.00022361,2]
[372511564,1752665447092,-207.4,0.00022361,2]
[372511565,1752665447104,-500.0,0.00022361,2]
[372511566,1752665447115,-151.0,0.00022361,2]
[372511567,1752665447126,-282.0,0.00022361,2]
[372511568,1752665447137,-500.0,0.00022361,2]
[372511569,1752665447148,-500.0,0.00022361,2]
[372511570,1752665447159,-500.0,0.00022361,2]
[372511571,1752665447170,-500.0,0.00022361,2]
[372511572,1752665447181,-500.0,0.00022361,2]
[372511573,1752665447192,-500.0,0.00022361,2]
[372511574,1752665447203,-500.0,0.00022361,2]
[372511575,1752665447215,-273.72678958,0.00022361,2]
[372511576,1752665447348,-1251.09455426,0.00022366,2]
[372511577,1752665447363,-460.0,0.00022465,2]
[372511578,1752665447373,-761.58,0.00022465,2]
[372511579,1752665447382,-487.95,0.00022465,2]
[372511580,1752665447391,-1620.41,0.00022465,2]
[372511581,1752665447401,-651.15,0.00022465,2]
[372511582,1752665447411,-469.92,0.00022465,2]
[372511583,1752665447420,-568.08,0.00022465,2]
[372511584,1752665447430,-1169.1,0.00022465,2]
[372511585,1752665447439,-1169.06,0.00022465,2]
[372511586,1752665447449,-958.69,0.00022465,2]
[372511587,1752665447458,-643.2,0.00022465,2]
[372511588,1752665447468,-460.0,0.00022465,2]
[372511589,1752665447478,-460.0,0.00022465,2]
[372511590,1752665447487,-17007.69522916,0.0002249,7]
[372511591,1752665447496,-500.0,0.00022587,2]
[372511592,1752665447506,-587.0,0.00022652,2]
[372511593,1752665447515,-2351.0,0.00022654,2]
[372511594,1752665447524,-460.0,0.00022739,2]
[372511595,1752665447533,-761.58,0.00022739,2]
[372511596,1752665447543,-487.95,0.00022739,2]
[372511597,1752665447553,-1620.41,0.00022739,2]
[372511598,1752665447562,-651.15,0.00022739,2]
[372511599,1752665447572,-469.92,0.00022739,2]
[372511600,1752665447582,-568.08,0.00022739,2]
[372511601,1752665447591,-1169.1,0.00022739,2]
[372511602,1752665447601,-1169.06,0.00022739,2]
[372511603,1752665447610,-958.69,0.00022739,2]
[372511604,1752665447620,-643.2,0.00022739,2]
[372511605,1752665447630,-460.0,0.00022739,2]
[372511606,1752665447639,-460.0,0.00022739,2]
[372511607,1752665447649,-501.90551534,0.00022781,2]
[372511608,1752665447659,-503.86476806,0.00022781,2]
[372511609,1752665447669,-188.0,0.00022872,2]
[372511610,1752665447678,-3059.16587203,0.00022887,2]
[372511611,1752665447688,-1963.24868026,0.00023,2]
[372511612,1752665447697,-520.85416667,0.00023,3]
[372511613,1752665447706,-331.2002356,0.00023,2]
[372511614,1752665447715,-460.0,0.00023013,2]
[372511615,1752665447725,-761.58,0.00023013,2]
[372511616,1752665447736,-487.95,0.00023013,2]
[372511617,1752665447747,-1620.41,0.00023013,2]
[372511618,1752665447758,-651.15,0.00023013,2]
[372511619,1752665447769,-469.92,0.00023013,2]
[372511620,1752665447779,-568.08,0.00023013,2]
[372511621,1752665447792,-1169.1,0.00023013,2]
[372511622,1752665447801,-1169.06,0.00023013,2]
[372511623,1752665447811,-958.69,0.00023013,2]
[372511624,1752665447821,-643.2,0.00023013,2]
[372511625,1752665447830,-460.0,0.00023013,2]
[372511626,1752665447839,-460.0,0.00023013,2]